bitfinex/quotes_SOLUSD_20250818
["timestamp","ask_amount","ask_price","bid_price","bid_amount"]
[1755544377675,6.42192927,183.79,183.76,27.54163542]
[1755544378066,0.72,183.79,183.76,27.54163542]
[1755544379258,5.70192927,183.8,183.76,27.54163542]
[1755544379464,5.70192927,183.8,183.76,28.21163542]
[1755544379663,0.72,183.82,183.76,28.21163542]
[1755544379883,5.70192927,183.8,183.76,28.21163542]
[1755544380380,3.65235341,183.84,183.79,5.70192927]
[1755544380677,5.70192927,183.86,183.81,5.70192927]
[1755544380866,5.70192927,183.86,183.81,0.67]
[1755544380867,10.07428268,183.86,183.81,0.67]
[1755544381060,0.72,183.85,183.81,6.37192927]
[1755544381267,0.72,183.85,183.81,0.67]
[1755544381661,0.72,183.85,183.81,6.37192927]
[1755544381862,9.35428268,183.87,183.82,6.11010445]
[1755544382064,9.35428268,183.87,183.83,0.67]
[1755544382277,10.07428268,183.87,183.83,0.67]
[1755544382594,6.42192927,183.87,183.83,0.67]
[1755544382796,6.42192927,183.87,183.82,11.14203372]
[1755544382995,6.42192927,183.87,183.82,11.81203372]
[1755544383296,5.70192927,183.85,183.81,27.54035886]
[1755544383482,0.72,183.84,183.81,27.54035886]
[1755544383684,0.72,183.83,183.81,22.1]
[1755544383999,0.72,183.83,183.79,72.22263793]
[1755544384214,0.72,183.83,183.79,72.89263793]
[1755544384575,0.72,183.83,183.79,67.19070866]
[1755544384772,0.72,183.83,183.79,33.24263793]
[1755544385104,5.70192927,183.8,183.76,22.1]
[1755544385278,5.70192927,183.78,183.74,39.03]
[1755544385995,5.70192927,183.77,183.74,39.03]
[1755544386195,5.70192927,183.76,183.75,5.47209724]
[1755544387380,5.70192927,183.77,183.75,5.47209724]
[1755544387704,5.70192927,183.77,183.75,6.14209724]
[1755544388293,0.72,183.8,183.75,6.14209724]
[1755544388493,0.71,183.79,183.75,5.47209724]
[1755544388684,5.70192927,183.77,183.75,5.47209724]
[1755544389181,5.70192927,183.76,183.75,5.47209724]
[1755544389581,5.70192927,183.76,183.75,0.03]
[1755544390180,3.65235341,183.83,183.75,0.03]
[1755544390181,5.70192927,183.77,183.75,0.03]
[1755544390405,5.70192927,183.78,183.75,0.03]
[1755544390696,0.71,183.8,183.75,0.75]
[1755544390886,5.70192927,183.82,183.76,6.42192927]
[1755544391089,5.70192927,183.82,183.77,0.72]
[1755544391282,5.70192927,183.82,183.78,5.44128849]
[1755544391478,5.70192927,183.81,183.78,5.44128849]
[1755544393000,5.70192927,183.83,183.79,0.72]
[1755544393200,5.70192927,183.84,183.8,0.72]
[1755544393399,5.70192927,183.83,183.8,0.72]
[1755544393700,6.41192927,183.83,183.78,0.72]
[1755544393904,5.70192927,183.82,183.78,0.72]
[1755544394087,5.70192927,183.82,183.78,22.82]
[1755544394782,5.70192927,183.83,183.79,0.72]
[1755544395177,5.70192927,183.82,183.8,5.4406964]
[1755544395780,26.0,183.88,183.77,39.0]
[1755544395781,5.70192927,183.81,183.77,39.0]
[1755544396006,5.70192927,183.81,183.78,0.72]
[1755544396222,5.70192927,183.83,183.79,0.72]
[1755544396404,5.70192927,183.84,183.8,0.72]
[1755544396606,6.41192927,183.84,183.8,0.72]
[1755544396810,5.70192927,183.83,183.78,27.80192927]
[1755544397031,5.70192927,183.83,183.79,0.72]
[1755544397333,0.71,183.86,183.8,11.86262567]
[1755544397488,5.70192927,183.85,183.8,33.96262567]
[1755544397687,5.70192927,183.85,183.81,0.72]
[1755544398117,5.70192927,183.84,183.8,66.5406964]
[1755544398386,6.41192927,183.84,183.8,67.2606964]
[1755544398586,5.70192927,183.85,183.8,66.5406964]
[1755544398802,5.70192927,183.84,183.8,66.5406964]
[1755544399018,5.70192927,183.84,183.8,67.2606964]
[1755544399227,5.70192927,183.82,183.8,66.5406964]
[1755544399409,6.41192927,183.81,183.79,5.44090047]
[1755544399605,6.41192927,183.8,183.78,5.44121613]
[1755544399818,5.70192927,183.79,183.78,5.44121613]
[1755544400195,6.41192927,183.79,183.77,22.1]
[1755544400400,5.70192927,183.78,183.77,22.1]
[1755544400600,6.41192927,183.78,183.76,0.03]
[1755544400797,5.70192927,183.77,183.76,0.03]
[1755544401003,6.41192927,183.77,183.76,0.03]
[1755544402216,5.70192927,183.77,183.76,0.03]
[1755544403027,5.70192927,183.79,183.76,0.03]
[1755544403409,5.70192927,183.78,183.76,0.03]
[1755544404661,5.70192927,183.78,183.76,0.75]
[1755544405617,5.70192927,183.78,183.77,5.44158458]
[1755544406644,5.70192927,183.79,183.77,5.44158458]
[1755544407558,6.41192927,183.78,183.76,22.13]
[1755544407843,6.41192927,183.77,183.76,0.03]
[1755544408022,5.70192927,183.77,183.76,0.03]
[1755544408422,3.6565818,183.83,183.76,5.47188071]
[1755544408637,5.70192927,183.78,183.76,5.47188071]
[1755544409122,6.41192927,183.77,183.76,0.03]
[1755544409919,14.13220272,183.77,183.76,0.03]
[1755544410830,10.47562092,183.77,183.76,0.03]
[1755544411236,14.13121333,183.77,183.76,0.03]
[1755544411436,19.57279791,183.77,183.76,0.03]
[1755544411826,14.13121333,183.77,183.76,0.03]
[1755544412442,19.57279791,183.77,183.76,0.03]
[1755544413526,19.71495948,183.77,183.76,0.03]
[1755544416440,25.23824401,183.77,183.76,0.03]
[1755544416752,19.65449786,183.77,183.76,0.03]
[1755544417140,14.13121333,183.77,183.76,0.03]
[1755544417339,10.47463153,183.77,183.76,0.03]
[1755544417743,14.13121333,183.77,183.76,0.03]
[1755544417941,10.47463153,183.77,183.76,0.03]
[1755544418142,14.13121333,183.77,183.76,0.03]
[1755544418449,49.47463153,183.77,183.76,0.03]
[1755544418653,58.71495948,183.77,183.76,0.03]
[1755544419724,58.60329582,183.77,183.76,0.03]
[1755544420434,58.59872625,183.77,183.76,0.03]
[1755544420825,54.54059356,183.77,183.76,0.03]
[1755544421027,58.5982391,183.77,183.76,0.03]
[1755544421442,13.41615661,183.77,183.76,0.03]
[1755544421654,9.75957481,183.77,183.76,0.03]
[1755544422154,41.92115939,183.77,183.76,0.03]
[1755544422345,5.70192927,183.76,183.74,0.03]
[1755544422530,52.55262448,183.75,183.73,0.03]
[1755544422754,13.41046291,183.74,183.73,0.03]
[1755544422930,14.13046291,183.74,183.73,0.03]
[1755544423453,0.14216157,183.73,183.69,0.03]
[1755544423650,11.40385854,183.71,183.69,0.03]
[1755544423845,49.47957481,183.71,183.69,0.03]
[1755544424060,52.41046291,183.71,183.69,0.03]
[1755544424231,48.75957481,183.71,183.69,0.03]
[1755544424661,52.4068405,183.71,183.69,0.03]
[1755544424844,44.70192927,183.71,183.69,0.03]
[1755544427466,45.42192927,183.71,183.69,0.03]
[1755544427767,54.51014904,183.71,183.69,0.03]
[1755544427967,64.40372511,183.71,183.69,0.03]
[1755544428350,0.14216157,183.7,183.69,0.03]
[1755544428540,61.06657886,183.7,183.69,0.03]
[1755544429147,66.51023699,183.7,183.69,0.03]
[1755544429350,66.5091716,183.7,183.69,0.03]
[1755544430161,66.5065614,183.7,183.69,0.03]
[1755544430668,66.5065614,183.7,183.61,0.72]
[1755544430869,5.70192927,183.63,183.61,0.72]
[1755544431373,5.70192927,183.63,183.62,0.72]
[1755544432283,39.0,183.65,183.59,0.72]
[1755544432754,5.70192927,183.64,183.59,6.42192927]
[1755544432956,5.70192927,183.64,183.6,0.72]
[1755544433472,5.70192927,183.66,183.61,5.70192927]
[1755544433651,5.70192927,183.66,183.62,0.72]
[1755544434051,5.70192927,183.65,183.63,0.72]
[1755544434560,5.70192927,183.64,183.63,0.72]
[1755544435678,5.70192927,183.64,183.62,5.445968]
[1755544435855,5.70192927,183.64,183.62,6.165968]
[1755544436476,5.70192927,183.64,183.62,6.16598799]
[1755544436672,5.70192927,183.64,183.62,0.72]
[1755544437361,5.70192927,183.65,183.63,0.72]
[1755544437906,5.70192927,183.64,183.63,0.72]
[1755544438467,5.70192927,183.64,183.6,27.54662309]
[1755544438679,5.70192927,183.65,183.61,0.72]
[1755544439176,39.0,183.69,183.61,6.42192927]
[1755544439377,44.72192927,183.69,183.63,5.70192927]
[1755544439555,5.70192927,183.69,183.64,6.42192927]
[1755544439750,5.70192927,183.69,183.64,5.70192927]
[1755544439957,5.70192927,183.69,183.65,0.72]
[1755544440184,39.74,183.72,183.64,5.70192927]
[1755544440185,5.70192927,183.7,183.66,0.72]
[1755544440388,5.76192927,183.73,183.68,5.70192927]
[1755544440603,5.76192927,183.73,183.61,26.03]
[1755544440604,0.06,183.71,183.69,6.16395448]
[1755544441060,0.06,183.71,183.7,0.72]
[1755544441450,0.06,183.71,183.69,5.44395448]
[1755544441673,5.76192927,183.71,183.69,5.44395448]
[1755544442680,5.76192927,183.71,183.67,5.44454728]
[1755544442907,5.76192927,183.71,183.69,0.72]
[1755544443304,5.76192927,183.71,183.67,5.44454728]
[1755544443619,5.76192927,183.71,183.68,0.72]
[1755544443800,5.70192927,183.69,183.66,5.44475178]
[1755544444002,5.70192927,183.68,183.66,5.44475178]
[1755544444690,5.70192927,183.68,183.66,0.72]
[1755544445020,5.70192927,183.69,183.66,0.72]
[1755544445202,5.70192927,183.7,183.67,0.72]
[1755544445424,0.06,183.71,183.68,0.72]
[1755544445718,0.06,183.71,183.68,6.42192927]
[1755544445919,0.06,183.71,183.69,0.72]
[1755544446800,0.06,183.71,183.7,5.44365813]
[1755544447002,0.06,183.71,183.7,6.16365813]
[1755544449110,0.06,183.71,183.7,11.8655874]
[1755544449321,0.06,183.71,183.7,6.16365813]
[1755544449530,0.06,183.71,183.7,5.44365813]
[1755544449913,0.06,183.71,183.7,6.15365813]
[1755544451401,0.06,183.71,183.7,5.44365813]
[1755544451601,0.06,183.71,183.7,6.15365813]
[1755544452613,0.06,183.71,183.7,11.8555874]
[1755544453708,0.06,183.71,183.7,33.9555874]
[1755544455751,0.06,183.71,183.7,33.2455874]
[1755544456111,0.06,183.71,183.7,27.54365813]
[1755544457829,6.45192927,183.71,183.68,22.1]
[1755544458018,5.70192927,183.69,183.66,5.44478076]
[1755544458223,5.70192927,183.67,183.66,5.44478076]
[1755544458535,6.39192927,183.67,183.64,5.47533859]
[1755544458737,5.70192927,183.67,183.64,6.18533859]
[1755544458967,5.70192927,183.68,183.65,0.71]
[1755544459517,0.69,183.69,183.64,5.47533859]
[1755544459716,5.70192927,183.67,183.64,6.18533859]
[1755544460554,5.70192927,183.68,183.64,0.03]
[1755544460762,0.06,183.71,183.65,0.71]
[1755544460923,5.70192927,183.69,183.65,0.71]
[1755544461250,5.70192927,183.68,183.64,0.03]
[1755544461422,6.39192927,183.67,183.64,0.03]
[1755544461619,5.70192927,183.66,183.64,0.03]
[1755544461825,6.39192927,183.66,183.64,0.03]
[1755544462027,0.69,183.65,183.64,0.03]
[1755544462729,5.70192927,183.66,183.64,0.03]
[1755544462915,6.39192927,183.66,183.64,0.03]
[1755544463310,0.06,183.71,183.64,0.03]
[1755544463514,5.70192927,183.69,183.64,28.54192927]
[1755544463743,0.06,183.71,183.65,0.71]
[1755544463947,6.39192927,183.69,183.64,27.83192927]
[1755544464152,6.39192927,183.69,183.64,28.54192927]
[1755544465029,6.39192927,183.69,183.65,5.44514021]
[1755544465434,6.39192927,183.69,183.65,6.15514021]
[1755544465627,5.70192927,183.69,183.65,6.15514021]
[1755544465831,6.39192927,183.69,183.65,5.44514021]
[1755544466250,6.39192927,183.68,183.65,5.44514021]
[1755544466457,5.70192927,183.66,183.64,0.03]
[1755544466647,13.41397888,183.65,183.64,0.03]
[1755544466853,14.24614045,183.65,183.64,0.03]
[1755544467161,19.69128066,183.65,183.64,0.03]
[1755544467872,19.69070299,183.65,183.64,0.03]
[1755544469437,21.87440699,183.65,183.63,0.03]
[1755544469629,14.10340121,183.64,183.63,0.03]
[1755544470068,8.40147194,183.64,183.63,0.03]
[1755544470229,14.10340121,183.64,183.6,0.03]
[1755544470425,5.70192927,183.61,183.6,0.03]
[1755544470966,6.39192927,183.61,183.6,0.03]
[1755544471932,10.04029834,183.61,183.6,0.03]
[1755544472249,15.48662479,183.61,183.6,0.03]
[1755544472450,10.04029834,183.61,183.6,0.03]
[1755544472942,6.39192927,183.61,183.6,0.03]
[1755544473134,10.04029834,183.61,183.6,0.03]
[1755544473630,6.39192927,183.61,183.6,0.03]
[1755544474234,10.04029834,183.61,183.6,0.03]
[1755544474445,16.19848234,183.61,183.6,0.03]
[1755544475041,12.55011327,183.61,183.6,0.03]
[1755544476160,16.19848234,183.61,183.6,0.03]
[1755544477264,12.55011327,183.61,183.6,0.03]
[1755544478262,76.69716457,183.61,183.6,0.03]
[1755544478451,11.40385854,183.59,183.58,0.03]
[1755544478647,26.65223568,183.59,183.56,0.03]
[1755544478964,5.70192927,183.57,183.56,0.03]
[1755544479467,6.41192927,183.57,183.56,0.03]
[1755544479650,12.00160405,183.57,183.56,0.03]
[1755544480053,6.55409084,183.57,183.56,0.03]
[1755544480560,12.00160405,183.57,183.56,0.03]
[1755544480742,6.29967478,183.57,183.56,0.03]
[1755544480940,6.55409084,183.57,183.56,0.03]
[1755544481142,0.71,183.57,183.56,0.03]
[1755544481451,6.41192927,183.57,183.56,0.03]
[1755544482167,11.78255028,183.57,183.56,0.03]
[1755544482362,50.07255028,183.57,183.56,0.03]
[1755544484361,50.78255028,183.57,183.56,0.03]
[1755544484570,50.07255028,183.57,183.56,0.03]
[1755544487071,50.07255028,183.57,183.56,0.75]
[1755544487271,50.07255028,183.57,183.56,0.03]
[1755544490960,50.78255028,183.57,183.56,0.03]
[1755544491774,50.07255028,183.57,183.56,0.03]
[1755544492273,44.70192927,183.57,183.56,0.03]
[1755544492463,5.70192927,183.57,183.56,0.75]
[1755544492777,0.06,183.58,183.56,0.75]
[1755544493475,0.06,183.58,183.57,0.72]
[1755544493856,0.06,183.58,183.56,0.03]
[1755544494061,0.06,183.58,183.56,0.75]
[1755544494681,5.70192927,183.57,183.56,0.75]
[1755544494877,5.76192927,183.58,183.56,6.19780998]
[1755544495176,5.76192927,183.58,183.57,0.72]
[1755544497259,0.06,183.58,183.57,6.16751321]
[1755544497667,0.06,183.58,183.57,11.86944248]
[1755544498469,0.06,183.58,183.57,33.96944248]
[1755544499980,0.06,183.58,183.57,22.82]
[1755544500883,0.06,183.58,183.57,22.1]
[1755544501082,5.76192927,183.58,183.56,0.03]
[1755544501383,6.41192927,183.57,183.56,0.03]
[1755544501570,45.41192927,183.57,183.56,0.03]
[1755544501768,53.21717794,183.57,183.56,0.03]
[1755544503186,73.77090672,183.57,183.56,0.03]
[1755544503385,78.34178225,183.57,183.56,0.03]
[1755544503767,26.0,183.53,183.5,0.03]
[1755544504068,5.84409084,183.51,183.5,0.03]
[1755544504260,9.88027665,183.51,183.5,0.03]
[1755544504474,14.22218305,183.51,183.5,0.03]
[1755544504675,18.76206605,183.51,183.5,0.03]
[1755544504880,33.86828162,183.51,183.5,0.03]
[1755544505269,39.31757593,183.51,183.5,0.03]
[1755544507070,0.14216157,183.49,183.42,0.72]
[1755544507274,15.10621557,183.5,183.37,0.2]
[1755544507275,5.70192927,183.43,183.37,0.92]
[1755544507480,5.70192927,183.39,183.38,0.72]
[1755544507683,5.70192927,183.39,183.37,0.91]
[1755544507994,5.70192927,183.38,183.37,0.91]
[1755544508188,9.99066246,183.46,183.37,0.2]
[1755544508391,7.65666773,183.45,183.39,5.70192927]
[1755544508685,48.57026151,183.48,183.4,26.71]
[1755544508885,3.62833224,183.47,183.42,5.70192927]
[1755544509105,44.94192927,183.48,183.46,0.03]
[1755544509308,39.24,183.48,183.46,0.03]
[1755544509506,39.24,183.48,183.47,0.71]
[1755544509803,5.70192927,183.48,183.47,0.71]
[1755544509975,48.65209414,183.48,183.46,0.03]
[1755544510177,10.01209414,183.47,183.46,0.03]
[1755544510480,14.04598668,183.47,183.46,0.03]
[1755544511308,18.58586968,183.47,183.46,0.03]
[1755544511785,14.04598668,183.47,183.46,0.03]
[1755544511976,13.36598668,183.47,183.46,0.03]
[1755544512488,27.36493187,183.47,183.46,0.03]
[1755544513016,42.61330901,183.47,183.46,0.03]
[1755544513204,38.07342601,183.47,183.39,0.71]
[1755544513385,38.07342601,183.47,183.36,0.71]
[1755544513386,9.0305091,183.4,183.36,0.71]
[1755544513698,9.0305091,183.38,183.36,0.71]
[1755544514106,9.0305091,183.38,183.37,0.71]
[1755544514311,48.7705091,183.39,183.37,0.71]
[1755544514814,39.74,183.39,183.38,0.71]
[1755544515185,48.7705091,183.39,183.34,0.71]
[1755544515391,9.0305091,183.37,183.35,0.71]
[1755544515796,39.74,183.39,183.35,0.71]
[1755544516020,39.74,183.39,183.36,0.71]
[1755544516614,39.74,183.39,183.37,0.71]
[1755544516812,39.74,183.39,183.38,0.71]
[1755544517022,52.39107324,183.39,183.34,0.71]
[1755544517326,9.0305091,183.37,183.35,0.71]
[1755544517490,9.0305091,183.37,183.33,5.45442337]
[1755544517691,9.0305091,183.38,183.36,0.71]
[1755544517896,39.74,183.39,183.37,0.71]
[1755544518129,39.74,183.39,183.33,19.09103494]
[1755544518292,0.68,183.46,183.38,0.71]
[1755544518497,9.0305091,183.44,183.38,9.7405091]
[1755544518800,12.64917579,183.44,183.39,0.71]
[1755544519220,9.0305091,183.44,183.4,5.4525627]
[1755544519400,39.8,183.45,183.41,0.71]
[1755544519723,48.8305091,183.45,183.42,0.71]
[1755544519935,48.8305091,183.45,183.43,0.71]
[1755544520545,9.0305091,183.44,183.43,0.71]
[1755544520695,9.0305091,183.44,183.41,0.71]
[1755544520897,9.0305091,183.44,183.4,5.4525627]
[1755544521200,9.0305091,183.44,183.4,6.1625627]
[1755544521804,9.0305091,183.41,183.4,22.1]
[1755544521994,9.0305091,183.42,183.38,27.55287095]
[1755544522197,9.0305091,183.42,183.38,28.26287095]
[1755544522506,48.7905091,183.42,183.38,28.26287095]
[1755544522686,39.76,183.42,183.39,0.71]
[1755544522889,39.76,183.42,183.39,9.7405091]
[1755544523106,39.76,183.42,183.4,0.71]
[1755544523316,39.76,183.42,183.41,5.45226541]
[1755544523615,48.7705091,183.45,183.41,6.16226541]
[1755544523821,9.0305091,183.44,183.42,0.71]
[1755544524118,9.0305091,183.44,183.41,5.45226541]
[1755544524536,9.0305091,183.44,183.41,6.16226541]
[1755544524829,9.0305091,183.44,183.41,0.71]
[1755544525036,9.0305091,183.44,183.4,5.45248057]
[1755544525204,9.0305091,183.43,183.39,27.55280469]
[1755544525407,9.0305091,183.43,183.39,28.26280469]
[1755544525619,9.0305091,183.43,183.4,0.71]
[1755544525932,39.74,183.45,183.41,0.71]
[1755544525933,9.0305091,183.44,183.41,0.71]
[1755544526306,39.74,183.45,183.42,0.71]
[1755544526512,48.7705091,183.45,183.41,22.1]
[1755544526721,9.0305091,183.43,183.41,22.1]
[1755544527124,9.0305091,183.42,183.41,22.1]
[1755544527323,48.7105091,183.42,183.41,22.1]
[1755544528041,49.3905091,183.42,183.38,22.13]
[1755544528232,9.0305091,183.4,183.38,22.13]
[1755544528537,9.0305091,183.4,183.38,0.03]
[1755544529038,9.0305091,183.39,183.38,0.03]
[1755544529538,48.7105091,183.42,183.38,0.03]
[1755544529839,9.0305091,183.41,183.38,0.03]
[1755544530018,9.0305091,183.4,183.38,0.03]
[1755544530623,9.0305091,183.39,183.38,0.03]
[1755544531241,48.6905091,183.39,183.38,0.03]
[1755544534429,46.07229188,183.39,183.38,0.03]
[1755544534627,45.39229188,183.39,183.38,0.03]
[1755544535726,46.07229188,183.39,183.38,0.03]
[1755544535920,45.39229188,183.39,183.38,0.03]
[1755544536718,39.66,183.39,183.38,0.03]
[1755544536936,45.39229188,183.39,183.38,0.03]
[1755544537924,5.73229188,183.42,183.38,22.8]
[1755544538125,39.58,183.41,183.39,0.67]
[1755544538327,5.73229188,183.44,183.39,28.50229188]
[1755544538546,5.73229188,183.41,183.39,22.1]
[1755544538732,5.73229188,183.4,183.38,22.13]
[1755544539320,39.56,183.41,183.39,0.67]
[1755544541328,39.56,183.41,183.39,6.1228474]
[1755544541745,39.56,183.41,183.39,0.67]
[1755544542050,39.56,183.41,183.39,6.12281346]
[1755544542552,39.56,183.41,183.4,0.67]
[1755544543075,39.56,183.41,183.39,5.45281346]
[1755544543348,39.56,183.41,183.38,28.25314542]
[1755544544145,3.63174706,183.4,183.38,28.25314542]
[1755544544330,39.56,183.41,183.38,28.25314542]
[1755544544530,3.6319616,183.4,183.38,28.25314542]
[1755544544742,39.56,183.41,183.38,27.58314542]
[1755544544944,39.52,183.43,183.39,6.40229188]
[1755544545252,39.52,183.43,183.4,0.67]
[1755544545253,3.63138859,183.42,183.4,0.67]
[1755544545439,39.52,183.43,183.41,0.67]
[1755544545639,3.63210626,183.42,183.39,5.73229188]
[1755544545936,4.52321029,183.47,183.41,5.73229188]
[1755544545937,39.5,183.46,183.41,5.73229188]
[1755544546260,7.67273652,183.45,183.42,6.40229188]
[1755544546460,3.63213606,183.44,183.43,0.67]
[1755544546765,0.77,183.5,183.43,6.40229188]
[1755544546766,4.58321029,183.5,183.43,6.40229188]
[1755544546978,7.67726823,183.49,183.45,5.73229188]
[1755544547182,7.67726823,183.48,183.46,0.67]
[1755544547479,3.63611815,183.47,183.44,5.45137374]
[1755544547681,0.06,183.5,183.46,5.73229188]
[1755544547856,7.67980869,183.49,183.47,5.73229188]
[1755544548053,3.63741372,183.48,183.46,5.73229188]
[1755544548261,0.06,183.5,183.46,5.73229188]
[1755544548476,7.68251393,183.49,183.46,5.73229188]
[1755544548775,3.63902918,183.48,183.47,0.67]
[1755544548956,0.06,183.5,183.48,5.4501853]
[1755544549157,3.63833326,183.49,183.48,11.18247718]
[1755544549379,0.06,183.5,183.48,11.18247718]
[1755544549584,0.06,183.5,183.49,5.73229188]
[1755544549761,0.06,183.5,183.49,6.40229188]
[1755544550998,0.06,183.5,183.49,11.85218015]
[1755544551456,0.06,183.5,183.49,11.35218015]
[1755544551865,0.06,183.52,183.51,5.73229188]
[1755544552251,7.65943831,183.57,183.51,6.40229188]
[1755544552451,3.62802715,183.56,183.55,5.73229188]
[1755544552663,3.62802715,183.56,183.55,0.67]
[1755544553081,3.62802715,183.56,183.55,6.11810678]
[1755544553279,0.06,183.58,183.55,11.85039866]
[1755544553484,0.06,183.58,183.57,5.73229188]
[1755544553854,0.06,183.58,183.57,6.40229188]
[1755544555004,0.06,183.58,183.57,11.84980509]
[1755544557309,0.06,183.58,183.57,33.94980509]
[1755544558322,0.06,183.58,183.57,28.21751321]
[1755544558529,0.06,183.58,183.57,33.94980509]
[1755544558839,0.06,183.58,183.57,22.1]
[1755544559016,0.77,183.58,183.57,22.1]
[1755544559815,0.06,183.58,183.57,22.1]
[1755544560011,0.06,183.58,183.57,27.54751321]
[1755544560213,0.06,183.58,183.57,33.94980509]
[1755544560522,0.06,183.6,183.57,33.94980509]
[1755544560711,0.06,183.6,183.59,5.73229188]
[1755544561114,0.06,183.62,183.6,5.44662309]
[1755544561341,0.06,183.62,183.61,5.73229188]
[1755544561342,1e-08,183.62,183.61,5.73229188]
[1755544561635,1e-08,183.62,183.61,28.50229188]
[1755544563418,1e-08,183.64,183.63,26.0]
[1755544563652,1e-08,183.64,183.63,31.73229188]
[1755544563831,1e-08,183.64,183.63,32.40229188]
[1755544564023,1e-08,183.65,183.63,93.78229188]
[1755544564222,1e-08,183.65,183.64,0.67]
[1755544564620,1e-08,183.65,183.64,6.40229188]
[1755544564846,1e-08,183.65,183.64,28.50229188]
[1755544565427,1e-08,183.65,183.64,33.2777286]
[1755544565750,1e-08,183.65,183.64,33.9477286]
[1755544568037,1e-08,183.65,183.64,73.1877286]
[1755544569132,0.06,183.71,183.65,22.09999999]
[1755544569386,0.06,183.71,183.69,5.73229188]
[1755544569533,0.06,183.71,183.69,27.83229187]
[1755544570126,0.06,183.71,183.7,5.44365813]
[1755544571726,0.73,183.71,183.7,5.44365813]
[1755544572749,0.06,183.71,183.7,5.44365813]
[1755544574072,0.06,183.71,183.7,11.17595001]
[1755544575060,0.06,183.71,183.7,73.09595]
[1755544575243,0.06,183.71,183.7,67.36365812]
[1755544575438,0.06,183.71,183.7,72.41595]
[1755544576441,0.06,183.71,183.7,33.27595]
[1755544576642,0.06,183.71,183.7,72.45595]
[1755544578465,0.06,183.71,183.7,73.13595]
[1755544580067,1e-08,183.71,183.7,73.13595]
[1755544580452,1e-08,183.73,183.72,26.0]
[1755544580776,1e-08,183.73,183.72,70.87229188]
[1755544580950,1e-08,183.73,183.72,92.97229187]
[1755544581149,1e-08,183.73,183.72,108.75850744]
[1755544581348,1e-08,183.75,183.72,108.75850744]
[1755544581545,1e-08,183.75,183.74,5.73229188]
[1755544581784,1e-08,183.75,183.74,44.87229188]
[1755544582084,1e-08,183.77,183.76,31.44188071]
[1755544582380,1e-08,183.77,183.76,76.31417259]
[1755544582883,1e-08,183.77,183.76,76.99417259]
[1755544583062,1e-08,183.77,183.76,76.31417259]
[1755544583744,1e-08,183.77,183.76,37.17417259]
[1755544583946,1e-08,183.77,183.76,76.29417259]
[1755544585077,1e-08,183.77,183.76,37.17417259]
[1755544585248,1e-08,183.77,183.76,76.27417259]
[1755544585648,1e-08,183.77,183.76,76.95417259]
[1755544587761,1e-08,183.77,183.76,76.91417259]
[1755544588366,1e-08,183.77,183.76,76.23417259]
[1755544588693,1e-08,183.77,183.76,52.96038816]
[1755544589006,0.1,183.81,183.8,26.0]
[1755544589303,0.1,183.81,183.8,76.27298828]
[1755544590281,0.77,183.81,183.8,5.4406964]
[1755544590568,4.37018985,183.81,183.8,44.5406964]
[1755544591476,4.37018985,183.81,183.8,5.4406964]
[1755544592398,3.70018985,183.81,183.8,5.4406964]
[1755544592568,3.70018985,183.81,183.8,11.17298828]
[1755544593605,3.70018985,183.81,183.8,11.85298828]
[1755544593800,0.1,183.81,183.8,11.85298828]
[1755544594295,1e-08,183.81,183.8,11.85298828]
[1755544594465,1e-08,183.81,183.8,26.95920385]
[1755544594897,1e-08,183.81,183.8,11.17298828]
[1755544595065,4.27562756,183.81,183.8,44.5006964]
[1755544596293,3.60562756,183.81,183.8,50.91298828]
[1755544596603,1e-08,183.81,183.8,50.91298828]
[1755544597179,1e-08,183.81,183.8,5.4406964]